Cogmind - Beta 14 *** ADVENTURER MODE // 2024.08.22 @ 17:06:33 Player: LegoMDS Result: Destroyed by D-53 Grenadier with Mini Grenade Launcher Performance ------------- Evolutions (0) 0 Regions Visited (2) 400 Robots Destroyed (20) 100 Value Destroyed (368) 368 Prototype IDs (2) 40 Alien Tech Used (0) 0 Bonus (-7) -7 TOTAL SCORE: 901 Bonus ------- Follower Combat Kills 39 Friendly Fire -46 Cogmind --------- Core Integrity 0/250 Matter 224/300 Energy 265/265 System Corruption 0% Temperature Cool (0) Movement Walking (120) Location -10/Mines Parts ------- > --- POWER (1) -------- Improved Ion Engine > --- PROPULSION (2) --- Aluminum Leg Aluminum Leg > --- UTILITY (2) ------ Medium Storage Unit Targeting Computer > --- WEAPON (2) ------- Assault Rifle > --- INVENTORY (10) --- Improved Ion Engine Aluminum Leg Aluminum Leg Light Armor Plating Shield Generator Medium Laser Assault Rifle Light Cannon Mining Laser Peak State ------------ > --- POWER ------------ Improved Ion Engine > --- PROPULSION ------- Aluminum Leg Aluminum Leg > --- UTILITY ---------- Medium Storage Unit Targeting Computer > --- WEAPON ----------- Beam Rifle Rocket Launcher > --- INVENTORY -------- Improved Ion Engine Aluminum Leg Aluminum Leg Light Armor Plating Shield Generator Medium Laser Assault Rifle Assault Rifle Light Cannon Mining Laser [Rating: 11] Favorites ----------- Power Light Ion Engine Engine Light Ion Engine Propulsion Aluminum Leg Leg Aluminum Leg Utility Medium Storage Unit Storage Medium Storage Unit Processor Targeting Computer Weapon Assault Rifle Energy Gun Medium Laser Ballistic Gun Assault Rifle Launcher Rocket Launcher Build | -11 -10 -10 ------- Run | Yrd Mat Min Slots Evolved . | . . . Power . | . . . Propulsion . | . . . Utility . | . . . Weapon . | . . . Parts Attached 15 | 7 4 4 Power 3 | 1 1 1 Engine 3 | 1 1 1 Core . | . . . Reactor . | . . . Propulsion 3 | 2 1 . Treads . | . . . Leg 3 | 2 1 . Wheel . | . . . Hover . | . . . Flight . | . . . Utility 3 | 1 2 . Device . | . . . Storage 2 | 1 1 . Processor 1 | . 1 . Hackware . | . . . Protection . | . . . Artifact . | . . . Weapon 6 | 3 . 3 Energy Gun 2 | 1 . 1 Energy Cannon . | . . . Ballistic Gun 3 | 2 . 1 Ballistic Cannon . | . . . Launcher 1 | . . 1 Special Weapon . | . . . Impact Weapon . | . . . Slashing Weapon . | . . . Piercing Weapon . | . . . Special Melee Weapon . | . . . Unidentified Prototypes . | . . . Parts Lost 4 | . 2 2 Power 1 | . 1 . Propulsion 1 | . 1 . Utility . | . . . Weapon 2 | . . 2 Highest Loss Streak 2 | . 1 2 To Critical Strikes . | . . . Average Slot Usage (%) 94 | . 92 100 Engine 13 | . 13 14 Leg 28 | . 28 28 Storage 14 | . 14 14 Processor 9 | . 7 14 Energy Gun 13 | . 14 13 Ballistic Gun 13 | . 14 13 Peak Build Rating 11 | 6 8 11 Average Rating 7 | 3 6 9 On Entrance 4 | . 6 8 Naked Turns . | . . . Heaviest Build 23 | 12 19 23 Greatest Support 20 | 20 20 20 Greatest Overweight (x) 1 | . . 1 Average Overweight (x) . | . . . Largest Inventory Capacity 10 | 8 10 10 Average Capacity 9 | 6 9 10 Most Carried 10 | 4 9 10 Average Carried 5 | 1 4 9 Final Capacity 10 | 8 10 10 Final Carried 9 | 2 9 9 Class Distribution -------------------- 100% | Mutant Dominant Class ---------------- Mutant | -10/Materials Mutant | -10/Mines Resources | -11 -10 -10 ----------- Run | Yrd Mat Min Matter Collected 409 | 246 128 35 Remotely . | . . . Salvage Created 452 | . 350 102 Parts 41 | . 30 11 Haulers Intercepted . | . . . Recyclers Shooed 2 | . 2 . Parts Field Recycled . | . . . Retrieved Matter . | . . . Parts Self-Destructed . | . . . Prevented . | . . . Kills | -11 -10 -10 ------- Run | Yrd Mat Min Combat Hostiles Destroyed 15 | . 11 4 Guns 15 | . 11 4 Classes Destroyed 5 | . 4 1 Worker 2 | . 1 1 Watcher 3 | . 3 . Swarmer 9 | . 6 3 Grunt 5 | . 5 . Sentry 1 | . . 1 Best Kill Streak 7 | . 7 3 Combat Bots Only 5 | . 5 3 Max Kills in Single Turn 2 | . 2 2 Gunslinging 1 | . . 1 Exploded . | . . . Melee . | . . . Uniques/NPCs Destroyed . | . . . Combat | -11 -10 -10 -------- Run | Yrd Mat Min Hostile Shots Fired 114 | . 93 21 Missed 33 | . 27 6 Damage Taken 874 | . 504 370 Core 256 | . 139 117 Absorbed by Shields . | . . . Ignored by Resistances 271 | . 165 106 Core Remaining (%) 100 | 100 . . Volleys Fired 39 | . 28 11 Largest 2 | . 2 2 Hottest 89 | . 70 89 Shots Fired 75 | . 55 20 Gun 71 | . 55 16 Cannon . | . . . Launcher 4 | . . 4 Special . | . . . Kinetic 37 | . 28 9 Thermal 34 | . 27 7 Explosive 4 | . . 4 Electromagnetic . | . . . Robot Hit Streak 11 | . 10 11 Robot Miss Streak 3 | . 3 2 Penetration Max . | . . . Secondary Targets 3 | . 1 2 Max Gunslinging Chain 1 | . 1 1 Shots Hit Robots 58 | . 42 16 Core Hits 34 | . 22 12 Critical Kills . | . . . Critical Parts Destroyed . | . . . Critical Strikes 1 | . 1 . Burn 1 | . 1 . Melee Attacks . | . . . Impact . | . . . Slashing . | . . . Piercing . | . . . Sneak Attacks . | . . . Combat Hostiles . | . . . Follow-up Attacks . | . . . Damage Inflicted 898 | . 605 293 Guns 758 | . 605 153 Cannons . | . . . Explosions 140 | . . 140 Melee . | . . . Ramming . | . . . Kinetic 389 | . 314 75 Thermal 369 | . 291 78 Explosive 140 | . . 140 Electromagnetic . | . . . Impact . | . . . Slashing . | . . . Piercing . | . . . Highest Corruption . | . . . Average Corruption . | . . . Corruption Purged . | . . . Corruption Blocked . | . . . Overload Shots . | . . . Overflow Damage . | . . . Projectiles . | . . . Explosions . | . . . Melee . | . . . Knockbacks . | . . . Impact . | . . . Kinetic . | . . . Secondary . | . . . Self-Inflicted Damage 26 | . . 26 Shots 1 | . . 1 Rammed . | . . . Targets Rammed . | . . . Kicked . | . . . Crushed . | . . . Highest Temperature 234 | . 234 60 Average Temperature 66 | . 79 24 Received Heat Transfer 189 | . 189 . Siege Activations . | . . . Robots Corrupted . | . . . Combat Hostiles . | . . . Parts Fried . | . . . Impact Corruptions . | . . . Robots Melted . | . . . Combat Hostiles . | . . . Parts Melted . | . . . Heat Transferred 1147 | . 925 222 Parts Sabotaged . | . . . Parts Stolen . | . . . Parts Stripped . | . . . Power Chain Reactions . | . . . Alert | -11 -10 -10 ------- Run | Yrd Mat Min Peak Influence 180 | . 155 180 Initial 19 | . . 19 Average 63 | . 44 131 Maximum Alert Level . | . . . Low Security (%) 100 | 100 100 100 Level 1 . | . . . Level 2 . | . . . Level 3 . | . . . Level 4 . | . . . Level 5 . | . . . High Security . | . . . Max Security . | . . . Squads Dispatched 2 | . 2 . Investigation 2 | . 2 . Extermination . | . . . Reinforcement . | . . . Assault . | . . . Garrison . | . . . Intercept . | . . . Searches Triggered . | . . . Construction Impeded . | . . . Haulers Reinforced . | . . . Active Scanning Responses . | . . . Cargo Convoy Interrupts . | . . . Stealth | -11 -10 -10 --------- Run | Yrd Mat Min Distress Signals 2 | . 2 . Communications Jammed . | . . . Distress Signals . | . . . Times Spotted 21 | . 15 6 Peak Tracking Total 6 | . 6 2 Tactical Retreats 1 | . 1 . Traps | -11 -10 -10 ------- Run | Yrd Mat Min Traps Triggered 3 | . 3 . Indirectly . | . . . Trap Hack Attempts . | . . . Triggered . | . . . Disarmed . | . . . Reprogrammed . | . . . Reused . | . . . Traps Extracted . | . . . Installed . | . . . Triggered . | . . . Machines | -11 -10 -10 ---------- Run | Yrd Mat Min Machines Disabled . | . . . Max in Single Turn . | . . . Machines Repaired . | . . . Machines Dismantled . | . . . Machines Sabotaged . | . . . Overloaded Fab Kills . | . . . Hacking | -11 -10 -10 --------- Run | Yrd Mat Min Machines Accessed 2 | . 2 . Terminals 2 | . 2 . Fabricators . | . . . Repair Stations . | . . . Recycling Units . | . . . Scanalyzers . | . . . Garrison Access . | . . . Total Hacks 7 | . 7 . Successful 4 | . 4 . Failed 3 | . 3 . Catastrophic 1 | . 1 . Database Lockouts . | . . . Manual . | . . . Terminals 7 | . 7 . Fabricators . | . . . Repair Stations . | . . . Recycling Units . | . . . Scanalyzers . | . . . Garrison Access . | . . . Terminal Hacks 4 | . 4 . Prototype ID Bank 1 | . 1 . Hauler Manifests 1 | . 1 . Registered Components 1 | . 1 . Zone Layout 1 | . 1 . Fabricator Hacks . | . . . Repair Station Hacks . | . . . Recycling Unit Hacks . | . . . Scanalyzer . | . . . Garrison Access Hacks . | . . . Unauthorized Hacks . | . . . Terminals . | . . . Fabricators . | . . . Repair Stations . | . . . Recycling Units . | . . . Scanalyzers . | . . . Garrison Access . | . . . Data Cores Recovered . | . . . Used . | . . . Hacking Detections 2 | . 2 . Full Trace Events 2 | . 2 . Feedback Events . | . . . Feedback Blocked . | . . . Robot Schematics Acquired . | . . . Robots Built . | . . . Authchips . | . . . Time . | . . . Total Robot Build Rating . | . . . Part Schematics Acquired . | . . . Parts Built . | . . . Authchips . | . . . Time . | . . . Total Part Build Rating . | . . . Parts Repaired . | . . . Time . | . . . Parts Recycled . | . . . Recycled Matter . | . . . Retrieved Matter . | . . . Retrieved Components . | . . . Parts Scanalyzed . | . . . Part Schematics Acquired . | . . . Parts Damaged . | . . . Bothacking | -11 -10 -10 ------------ Run | Yrd Mat Min Used RIF Installer . | . . . Robots Hacked . | . . . Non-combat . | . . . Combat . | . . . Robot Hacks Applied . | . . . Relay Couplers Released . | . . . Fabnet Peak Effective % . | . . . Robots Rewired . | . . . Allies Hacked . | . . . Hacks Repelled . | . . . Allies | -11 -10 -10 -------- Run | Yrd Mat Min Total Allies 1 | . . 1 Largest Group 1 | . . 1 Highest-Rated Group 31 | . . 31 Highest-Rated Ally 31 | . . 31 Total Orders . | . . . Ally Attacks 5 | . . 5 Total Damage 41 | . . 41 Kills 1 | . . 1 Allies Corrupted . | . . . Allies Melted . | . . . Intel | -11 -10 -10 ------- Run | Yrd Mat Min Robot Analysis Total . | . . . Derelict Logs Recovered 1 | . . 1 Drone Launches . | . . . Drone Recoveries . | . . . Exploration | -11 -10 -10 ------------- Run | Yrd Mat Min Turns Passed 1307 | 59 935 313 Spaces Moved 823 | 47 623 153 Core 18 | 18 . . Treads . | . . . Legs 805 | 29 623 153 Wheels . | . . . Hover . | . . . Flight . | . . . Fastest Speed 50 | 50 120 120 Average Speed 127 | 93 120 168 Slowest Speed 190 | 120 120 190 Overloaded Moves . | . . . Propulsion Burnouts . | . . . Robots Hopped . | . . . Cave-ins Triggered . | . . . Exploration Rate (%) 45 | 4 94 37 Regions Visited 2 Branch Regions 1 Pre-discovered Areas . | . . . Known Exits Taken . | . . . Unknown Exits Taken 2 | 1 1 . Scrap Searched . | . . . Spaces Dug . | . . . Terrain Destroyed 21 | . . 21 Melee . | . . . Projectile . | . . . AOE 21 | . . 21 Terrain Rammed . | . . . Walls Destroyed . | . . . Machines Disabled . | . . . Actions | -11 -10 -10 --------- Run | Yrd Mat Min Total 1005 | 61 756 188 Wait 103 | . 88 15 Move 821 | 46 622 153 Hop . | . . . Pick Up 23 | 8 12 3 Fast Attach . | . . . Attach 10 | 6 3 1 Detach . | . . . Swap 5 | 1 1 3 Drop 4 | . 2 2 Fire 39 | . 28 11 Melee . | . . . Ram . | . . . Kick . | . . . Crush . | . . . Escape Stasis . | . . . Rewire . | . . . Trap . | . . . Miscellaneous . | . . . Route ------- -11/Scrapyard -10/Materials (discovered 4 exits: [*Mat x3] / [*Min]) -10/Mines (discovered 1 exit: [*Mat]) History --------- Turn | Location | Event 40 | -11/Scrapyard | Discovered new exit (range 14) 60 | -11/Scrapyard | Entered Materials 313 | -10/Materials | Discovered new exit (range 16) 330 | -10/Materials | Build established: Mutant 489 | -10/Materials | Discovered new exit (range 16) 669 | -10/Materials | Discovered new exit (range 16) 885 | -10/Materials | Discovered new exit (range 5) 899 | -10/Materials | Core integrity fell below 50% 995 | -10/Materials | Entered Mines 1058 | -10/Mines | Joined a pair of Derelicts in attacking an 0b10 outpost 1114 | -10/Mines | Met a Derelict bent on vengeance 1200 | -10/Mines | Discovered new exit (range 11) 1264 | -10/Mines | Learned location of 1 exit from Materials 1282 | -10/Mines | Met a Derelict testing a Signal Generator 1282 | -10/Mines | Assembled infested the area 1301 | -10/Mines | Core integrity fell below 20% 1308 | -10/Mines | Destroyed by D-53 Grenadier with Mini Grenade Launcher Last Messages --------------- A derelict emerges from the shadows: "Quiet! I'm testing a new device we can use to divert those annoying Unaware when we need to." ALERT: Infestation in the mines, dispatching Demolisher response squad. Signal Generator broadcasts a burst of procedurally generated transmissions. ALERT: Intercepting significant anomalous signal. Redirecting assault force. WR-WB1(g): "Okay, I guess that means it works. Now let's get out of here!" ALERT: Intercepting significant anomalous signal. Redirecting assault force. C-30 ARC bursts open, deploying its payload. D-53 Grenadier unfolds itself. Beam Rifle destroyed. D-53 Grenadier destroyed. WR-WB1(g) destroyed. The unstable cave ceiling collapses. Rocket Launcher destroyed. Map ----- +----------------------------------------------------+ | | | | | | | | | | | | | | | | | | | | | | | ?????????????????????????????????????????????????? | | ?????????????????????????????????????????????????? | | ?????????????????????????????????????????????????? | | ?????????????????????????????????????????????????? | | ?????????????????????????????????????????????????? | | ??????????????????###????????????????????????????? | | ?????????????????## ##?????????????###??????????? | | ?????????????????# #????????????## ##????????? | | ?????????????????# ????##??????# ##???????? | | ?????????????????# #### ##?????# ##??????? | | ?????????????????# ##??#### ##????## | | ?????????????????# # ## #???## | | ??????????????????# # #???# | | ??????????????????# ##??# | | ??????????????????# @ = #### | | ?????????????????# d % < | | ?????????????????# #### | | ?????????????????## # # #??# | | ??????????????????#### #? ##?## | | ?????????????????????#### ###??# | | ????????????????????????# ###### ### ##????# | | ???????????????????????? #????####?#####?????# | | ????????????????????????###???????????????????# # | | ??????????????????????????????????????????????# # | | ?????????????????????????????????############## # | | ?????????????????????????????????# # | | ?????????????????????????????????# ############### | | ?????????????????????????????????# #?????????????? | | ?????????????????????????####????# #?????????????? | | ????????????????????????## #?### #?????????????? | | ????????????????????????# ## ##????????????? | | ????????????????????????# ##???????????? | | ????????????????????????## ###??????###? | | ?????????????????????????## ##???# | | ????????????????????????####### ### | | ???????????????????????##"!]"#### | | ???????????????????????#""!]""#?## | | ???????????????????????#%!!!=%#??# | | ???????????????????????##**! ###?# #######? | +----------------------------------------------------+ Best States ------------- Heat Dissipation 25 Energy Generation 12 Energy Capacity 265 Matter Stores 300 Matter Capacity 300 Sight Range 16 Terrain Scan Density 10 Resistance: KI 20 Resistance: TH 20 Resistance: EX 20 Resistance: EM 20 Resistance: I 20 Resistance: S 20 Resistance: P 20 Evasion (%) 55 Targeting Accuracy 5 Offensive Hacking 10 Item Schematics ----------------- None Robot Schematics ------------------ None Fabricated ------------ Nothing Alien Tech Used ----------------- None Achievements -------------- None Challenges ------------ None Game ------ Seed DeliveryExoskeletonTrident Manual? 0 Play Time 00:09:33 Cumulative 34.4 hours Start 2024.08.22 @ 16:58:46 End 2024.08.22 @ 17:06:33 Sessions 1 Manual Loads 0 Difficulty Adventurer Special Mode None Game No. 42 Rogue 13 Adventurer 29 Explorer 0 Win Type - Total 0 Types 0/0/0/0/0/0/0/0/0 Lore% 29 Gallery% 38 Achievement% 33 Wizard Run 0 Options --------- Layout 1 ASCII 0 Keyboard 0 Movement Mouse Keybinds 0 Fullscreen 1 Font 24/Smallcaps Map View 50x35 Zoom Use 0% Tactical HUD 0 Map Filters NONE Filters NONE Steam 1 RUN: 6758710f-f566-489f-8983-05cb74f89324